Workbook

Sheet البطاقات
A1: 497 | AB1: =A1 -> 497 | BG1: =A1+1 -> 498
H3: الجمهورية الجزائرية الديمقراطية الشعبية | AK3: الجمهورية الجزائرية الديمقراطية الشعبية
H4: وزارة التربية الوطنية | AK4: وزارة التربية الوطنية
I5: مديرية التربية لولاية ...................... | AL5: مديرية التربية لولاية ......................
E6: ثانــــوية......................... | AH6: ثانــــوية.........................
E7: السنة الدراسية:........................ | AH7: السنة الدراسية:........................
C12: التلميـــــــــــذ: | H12: =IFERROR(VLOOKUP(A1,sadokH2020,7,FALSE)&" "&VLOOKUP(A1,sadokH2020,8,FALSE),"") -> بن علي497 أحمد497 | AF12: =C12 -> التلميـــــــــــذ: | AK12: =IFERROR(VLOOKUP(BG1,sadokH2020,7,FALSE)&" "&VLOOKUP(BG1,sadokH2020,8,FALSE),"") -> بن علي498 أحمد498
C14: تاريـخ الميلاد: | H14: =IFERROR(VLOOKUP(A1,sadokH2020,9,FALSE),"") -> 2004-07-13 | AF14: =C14 -> تاريـخ الميلاد: | AK14: =IFERROR(VLOOKUP(BG1,sadokH2020,9,FALSE),"") -> 2005-05-18
C16: القســــــــــــم: | H16: =IFERROR(VLOOKUP(A1,sadokH2020,3,FALSE),"") -> 1ج م ع ت2 | AF16: =C16 -> القســــــــــــم: | AK16: =IFERROR(VLOOKUP(BG1,sadokH2020,3,FALSE),"") -> 1ج م ع ت2
C18: رقـم التسجيـل: | H18: =IFERROR(VLOOKUP(A1,sadokH2020,2,FALSE),"") -> 402 | AF18: =C18 -> رقـم التسجيـل: | AK18: =IFERROR(VLOOKUP(BG1,sadokH2020,2,FALSE),"") -> 403
A19: =BG1+1 -> 499 | AB19: =IFERROR(VLOOKUP(A1,sadokH2020,1,FALSE),"") -> 497 | AD19: =IFERROR(VLOOKUP(BG1,sadokH2020,1,FALSE),"") -> 498 | BF19: =A19+1 -> 500 | BG19: =INDIRECT("القائمة!$f$"&#REF!+ 1) -> 
H21: الجمهورية الجزائرية الديمقراطية الشعبية | AK21: الجمهورية الجزائرية الديمقراطية الشعبية
H22: وزارة التربية الوطنية | AK22: وزارة التربية الوطنية
I23: مديرية التربية لولاية ...................... | AL23: مديرية التربية لولاية ......................
E24: ثانــــوية......................... | AH24: ثانــــوية.........................
E25: السنة الدراسية:........................ | AH25: السنة الدراسية:........................
C30: =C12 -> التلميـــــــــــذ: | H30: =VLOOKUP(A19,sadokH2020,7,FALSE)&" "&VLOOKUP(A19,sadokH2020,8,FALSE) -> بن علي499 أحمد499 | AF30: =C12 -> التلميـــــــــــذ: | AK30: =IFERROR(VLOOKUP(BF19,sadokH2020,7,FALSE)&" "&VLOOKUP(BF19,sadokH2020,8,FALSE),"") -> بن علي500 أحمد500
C32: =C14 -> تاريـخ الميلاد: | H32: =IFERROR(VLOOKUP(A19,sadokH2020,9,FALSE),"") -> 2003-02-13 | AF32: =C14 -> تاريـخ الميلاد: | AK32: =IFERROR(VLOOKUP(BF19,sadokH2020,9,FALSE),"") -> 2004-06-20
C34: =C16 -> القســــــــــــم: | H34: =IFERROR(VLOOKUP(A19,sadokH2020,3,FALSE),"") -> 1ج م ع ت2 | AF34: =C16 -> القســــــــــــم: | AK34: =IFERROR(VLOOKUP(BF19,sadokH2020,3,FALSE),"") -> 1ج م ع ت2
C36: =C18 -> رقـم التسجيـل: | H36: =IFERROR(VLOOKUP(A19,sadokH2020,2,FALSE),"") -> 404 | AF36: =C18 -> رقـم التسجيـل: | AK36: =IFERROR(VLOOKUP(BF19,sadokH2020,2,FALSE),"") -> 405
A37: =BF19+1 -> 501 | AB37: =IFERROR(VLOOKUP(A19,sadokH2020,1,FALSE),"") -> 499 | AD37: =IFERROR(VLOOKUP(BF19,sadokH2020,1,FALSE),"") -> 500 | BF37: =A37+1 -> 502
H39: الجمهورية الجزائرية الديمقراطية الشعبية | AK39: الجمهورية الجزائرية الديمقراطية الشعبية
H40: وزارة التربية الوطنية | AK40: وزارة التربية الوطنية
I41: مديرية التربية لولاية ...................... | AL41: مديرية التربية لولاية ......................
E42: ثانــــوية......................... | AH42: ثانــــوية.........................
E43: السنة الدراسية:........................ | AH43: السنة الدراسية:........................
C48: =C12 -> التلميـــــــــــذ: | H48: =IFERROR(VLOOKUP(A37,sadokH2020,7,FALSE)&" "&VLOOKUP(A37,sadokH2020,8,FALSE),"") -> بن علي501 أحمد501 | AE48: =C12 -> التلميـــــــــــذ: | AK48: =IFERROR(VLOOKUP(BF37,sadokH2020,7,FALSE)&" "&VLOOKUP(BF37,sadokH2020,8,FALSE),"") -> بن علي502 أحمد502
C50: =C14 -> تاريـخ الميلاد: | H50: =IFERROR(VLOOKUP(A37,sadokH2020,9,FALSE),"") -> 2004-07-05 | AE50: =C14 -> تاريـخ الميلاد: | AK50: =IFERROR(VLOOKUP(BF37,sadokH2020,9,FALSE),"") -> 2004-08-16
C52: =C16 -> القســــــــــــم: | H52: =IFERROR(VLOOKUP(A37,sadokH2020,3,FALSE),"") -> 1ج م ع ت2 | AE52: =C16 -> القســــــــــــم: | AK52: =IFERROR(VLOOKUP(BF37,sadokH2020,3,FALSE),"") -> 1ج م ع ت3
C54: =C18 -> رقـم التسجيـل: | H54: =IFERROR(VLOOKUP(A37,sadokH2020,2,FALSE),"") -> 407 | AE54: =C18 -> رقـم التسجيـل: | AK54: =IFERROR(VLOOKUP(BF37,sadokH2020,2,FALSE),"") -> 411
A55: =BF37+1 -> 503 | AB55: =IFERROR(VLOOKUP(A37,sadokH2020,1,FALSE),"") -> 501 | AD55: =IFERROR(VLOOKUP(BF37,sadokH2020,1,FALSE),"") -> 502 | BF55: =A55+1 -> 504
H57: الجمهورية الجزائرية الديمقراطية الشعبية | AK57: الجمهورية الجزائرية الديمقراطية الشعبية
H58: وزارة التربية الوطنية | AK58: وزارة التربية الوطنية
I59: مديرية التربية لولاية ...................... | AL59: مديرية التربية لولاية ......................
E60: ثانــــوية......................... | AH60: ثانــــوية.........................
E61: السنة الدراسية:........................ | AH61: السنة الدراسية:........................
C66: =C12 -> التلميـــــــــــذ: | H66: =IFERROR(VLOOKUP(A55,sadokH2020,7,FALSE)&" "&VLOOKUP(A55,sadokH2020,8,FALSE),"") -> بن علي503 أحمد503 | AF66: =C12 -> التلميـــــــــــذ: | AK66: =IFERROR(VLOOKUP(BF55,sadokH2020,7,FALSE)&" "&VLOOKUP(BF55,sadokH2020,8,FALSE),"") -> بن علي504 أحمد504
C68: =C14 -> تاريـخ الميلاد: | H68: =IFERROR(VLOOKUP(A55,sadokH2020,9,FALSE),"") -> 2004-07-21 | AF68: =C14 -> تاريـخ الميلاد: | AK68: =IFERROR(VLOOKUP(BF55,sadokH2020,9,FALSE),"") -> 2005-02-10
C70: =C16 -> القســــــــــــم: | H70: =IFERROR(VLOOKUP(A55,sadokH2020,3,FALSE),"") -> 1ج م ع ت3 | AF70: =C16 -> القســــــــــــم: | AK70: =IFERROR(VLOOKUP(BF55,sadokH2020,3,FALSE),"") -> 1ج م ع ت3
C72: =C18 -> رقـم التسجيـل: | H72: =IFERROR(VLOOKUP(A55,sadokH2020,2,FALSE),"") -> 412 | AF72: =C18 -> رقـم التسجيـل: | AK72: =IFERROR(VLOOKUP(BF55,sadokH2020,2,FALSE),"") -> 418
A73: =BF55+1 -> 505 | AB73: =IFERROR(VLOOKUP(A55,sadokH2020,1,FALSE),"") -> 503 | AD73: =IFERROR(VLOOKUP(BF55,sadokH2020,1,FALSE),"") -> 504 | BF73: =A73+1 -> 506
H75: الجمهورية الجزائرية الديمقراطية الشعبية | AK75: الجمهورية الجزائرية الديمقراطية الشعبية
H76: وزارة التربية الوطنية | AK76: وزارة التربية الوطنية
I77: مديرية التربية لولاية ...................... | AL77: مديرية التربية لولاية ......................
E78: ثانــــوية......................... | AH78: ثانــــوية.........................
E79: السنة الدراسية:........................ | AH79: السنة الدراسية:........................
C84: =C12 -> التلميـــــــــــذ: | H84: =IFERROR(VLOOKUP(A73,sadokH2020,7,FALSE)&" "&VLOOKUP(A73,sadokH2020,8,FALSE),"") -> بن علي505 أحمد505 | AF84: =C12 -> التلميـــــــــــذ: | AK84: =IFERROR(VLOOKUP(BF73,sadokH2020,7,FALSE)&" "&VLOOKUP(BF73,sadokH2020,8,FALSE),"") -> بن علي506 أحمد506
C86: =C14 -> تاريـخ الميلاد: | H86: =IFERROR(VLOOKUP(A73,sadokH2020,9,FALSE),"") -> 2005-01-29 | AF86: =C14 -> تاريـخ الميلاد: | AK86: =IFERROR(VLOOKUP(BF73,sadokH2020,9,FALSE),"") -> 2003-12-17
C88: =C16 -> القســــــــــــم: | H88: =IFERROR(VLOOKUP(A73,sadokH2020,3,FALSE),"") -> 1ج م ع ت3 | AF88: =C16 -> القســــــــــــم: | AK88: =IFERROR(VLOOKUP(BF73,sadokH2020,3,FALSE),"") -> 1ج م ع ت3
C90: =C18 -> رقـم التسجيـل: | H90: =IFERROR(VLOOKUP(A73,sadokH2020,2,FALSE),"") -> 419 | AF90: =C18 -> رقـم التسجيـل: | AK90: =IFERROR(VLOOKUP(BF73,sadokH2020,2,FALSE),"") -> 420

Sheet القائمة
G1: الجمهورية الجزائرية الديمقراطية الشعبية
G2: وزارة التربية الوطنية
A3: مديرية التربية لولاية..........................
A4: ثانويــــة .................. | G4: أنثى | H4: =COUNTIF($F$7:$F$575,G4) -> 337 | I4: ذكر | J4: =COUNTIF($F$7:$F$575,I4) -> 232
F5: حالة أول أكتوبر 2019
A6: الرقم | B6: الرقم/ التسجيل | C6: القسم | D6: الاعادة | E6: الصفة | F6: الجنس | G6: اللقب | H6: الاسم | I6: تاريخ الميلاد | J6: مكان الميلاد | K6: اسم الولي | L6: مهنته | M6: العنوان | N6: القسم
A7: 1 | B7: 314 | C7: 2آف | D7: لا | E7: خارجي | F7: انثى | G7: بن علي1 | H7: أحمد1 | I7: 2003-03-28 | J7: الوادي1 | K7: عبد الرزاق | L7: موظف | M7: حي الازدهار | N7: 2آف
A8: 2 | B8: 003 | C8: 3هط | D8: لا | E8: خارجي | F8: أنثى | G8: بن علي2 | H8: أحمد2 | I8: 2002-08-12 | J8: الوادي2 | K8: عثمان | L8: موظف | M8: حي الازدهار | N8: ثالثة ثانوي هندسة طرائق
A9: 3 | B9: 006 | C9: 3هط | D9: نعم | E9: خارجي | F9: أنثى | G9: بن علي3 | H9: أحمد3 | I9: 2001-01-07 | J9: الوادي3 | K9: يزيد | L9: موظف | M9: حي الازدهار | N9: ثالثة ثانوي هندسة طرائق
A10: 4 | B10: 008 | C10: 3هط | D10: لا | E10: خارجي | F10: أنثى | G10: بن علي4 | H10: أحمد4 | I10: 2002-11-20 | J10: الوادي4 | K10: عبد القادر | L10: موظف | M10: حي الازدهار | N10: ثالثة ثانوي هندسة طرائق
A11: 5 | B11: 010 | C11: 3هط | D11: لا | E11: خارجي | F11: أنثى | G11: بن علي5 | H11: أحمد5 | I11: 2002-01-18 | J11: الوادي5 | K11: الطاهر | L11: موظف | M11: حي الازدهار | N11: ثالثة ثانوي هندسة طرائق
A12: 6 | B12: 011 | C12: 3هط | D12: لا | E12: خارجي | F12: أنثى | G12: بن علي6 | H12: أحمد6 | I12: 2002-09-02 | J12: الوادي6 | K12: بوبكر | L12: موظف | M12: حي الازدهار | N12: ثالثة ثانوي هندسة طرائق
A13: 7 | B13: 012 | C13: 3هط | D13: لا | E13: خارجي | F13: أنثى | G13: بن علي7 | H13: أحمد7 | I13: 2003-03-06 | J13: الوادي7 | K13: البشير | L13: موظف | M13: حي الازدهار | N13: ثالثة ثانوي هندسة طرائق
A14: 8 | B14: 014 | C14: 3هط | D14: لا | E14: خارجي | F14: أنثى | G14: بن علي8 | H14: أحمد8 | I14: 2002-01-23 | J14: الوادي8 | K14: مسعود | L14: موظف | M14: حي الازدهار | N14: ثالثة ثانوي هندسة طرائق
A15: 9 | B15: 016 | C15: 3هط | D15: نعم | E15: خارجي | F15: أنثى | G15: بن علي9 | H15: أحمد9 | I15: 2001-01-30 | J15: الوادي9 | K15: محمد | L15: موظف | M15: حي الازدهار | N15: ثالثة ثانوي هندسة طرائق
A16: 10 | B16: 017 | C16: 3هط | D16: نعم | E16: خارجي | F16: أنثى | G16: بن علي10 | H16: أحمد10 | I16: 2001-12-23 | J16: الوادي10 | K16: محمد العيد | L16: موظف | M16: حي الازدهار | N16: ثالثة ثانوي هندسة طرائق
A17: 11 | B17: 018 | C17: 3هط | D17: نعم | E17: خارجي | F17: أنثى | G17: بن علي11 | H17: أحمد11 | I17: 2000-10-16 | J17: الوادي11 | K17: عبدالحاكم | L17: موظف | M17: حي الازدهار | N17: ثالثة ثانوي هندسة طرائق
A18: 12 | B18: 020 | C18: 3هط | D18: لا | E18: خارجي | F18: أنثى | G18: بن علي12 | H18: أحمد12 | I18: 2002-09-12 | J18: الوادي12 | K18: محمد الصالح | L18: موظف | M18: حي الازدهار | N18: ثالثة ثانوي هندسة طرائق
A19: 13 | B19: 021 | C19: 3هط | D19: لا | E19: خارجي | F19: أنثى | G19: بن علي13 | H19: أحمد13 | I19: 2002-06-02 | J19: الوادي13 | K19: العيد | L19: موظف | M19: حي الازدهار | N19: ثالثة ثانوي هندسة طرائق
A20: 14 | B20: 022 | C20: 3هط | D20: لا | E20: خارجي | F20: أنثى | G20: بن علي14 | H20: أحمد14 | I20: 2001-09-11 | J20: الوادي14 | K20: احمد | L20: موظف | M20: حي الازدهار | N20: ثالثة ثانوي هندسة طرائق
A21: 15 | B21: 024 | C21: 3هط | D21: لا | E21: خارجي | F21: أنثى | G21: بن علي15 | H21: أحمد15 | I21: 2002-06-29 | J21: الوادي15 | K21: لخضر | L21: موظف | M21: حي الازدهار | N21: ثالثة ثانوي هندسة طرائق
A22: 16 | B22: 026 | C22: 3هط | D22: لا | E22: خارجي | F22: أنثى | G22: بن علي16 | H22: أحمد16 | I22: 2003-01-18 | J22: الوادي16 | K22: الزوبير | L22: موظف | M22: حي الازدهار | N22: ثالثة ثانوي هندسة طرائق
A23: 17 | B23: 028 | C23: 3هط | D23: نعم | E23: خارجي | F23: أنثى | G23: بن علي17 | H23: أحمد17 | I23: 2000-11-05 | J23: الوادي17 | K23: احمد | L23: موظف | M23: حي الازدهار | N23: ثالثة ثانوي هندسة طرائق
A24: 18 | B24: 029 | C24: 3هط | D24: لا | E24: خارجي | F24: أنثى | G24: بن علي18 | H24: أحمد18 | I24: 2003-01-15 | J24: الوادي18 | K24: بوبكر | L24: موظف | M24: حي الازدهار | N24: ثالثة ثانوي هندسة طرائق
A25: 19 | B25: 032 | C25: 3تق | D25: لا | E25: خارجي | F25: أنثى | G25: بن علي19 | H25: أحمد19 | I25: 2000-09-24 | J25: الوادي19 | K25: الصادق | L25: موظف | M25: حي الازدهار | N25: ثالثة ثانوي تسيير وإقتصاد
A26: 20 | B26: 033 | C26: 3تق | D26: لا | E26: خارجي | F26: أنثى | G26: بن علي20 | H26: أحمد20 | I26: 2001-10-26 | J26: الوادي20 | K26: سالم | L26: موظف | M26: حي الازدهار | N26: ثالثة ثانوي تسيير وإقتصاد
A27: 21 | B27: 035 | C27: 3تق | D27: لا | E27: خارجي | F27: أنثى | G27: بن علي21 | H27: أحمد21 | I27: 2002-08-21 | J27: الوادي21 | K27: محمد | L27: موظف | M27: حي الازدهار | N27: ثالثة ثانوي تسيير وإقتصاد
A28: 22 | B28: 037 | C28: 3تق | D28: لا | E28: خارجي | F28: أنثى | G28: بن علي22 | H28: أحمد22 | I28: 2002-06-04 | J28: الوادي22 | K28: اعمارة | L28: موظف | M28: حي الازدهار | N28: ثالثة ثانوي تسيير وإقتصاد
A29: 23 | B29: 039 | C29: 3تق | D29: لا | E29: خارجي | F29: أنثى | G29: بن علي23 | H29: أحمد23 | I29: 2002-07-08 | J29: الوادي23 | K29: نصر الدين | L29: موظف | M29: حي الازدهار | N29: ثالثة ثانوي تسيير وإقتصاد
A30: 24 | B30: 041 | C30: 3تق | D30: نعم | E30: خارجي | F30: أنثى | G30: بن علي24 | H30: أحمد24 | I30: 2001-07-25 | J30: الوادي24 | K30: عبد الحميد | L30: موظف | M30: حي الازدهار | N30: ثالثة ثانوي تسيير وإقتصاد
A31: 25 | B31: 042 | C31: 3تق | D31: نعم | E31: خارجي | F31: أنثى | G31: بن علي25 | H31: أحمد25 | I31: 2001-08-17 | J31: الوادي25 | K31: محمد الصالح | L31: موظف | M31: حي الازدهار | N31: ثالثة ثانوي تسيير وإقتصاد
A32: 26 | B32: 045 | C32: 3تق | D32: لا | E32: خارجي | F32: أنثى | G32: بن علي26 | H32: أحمد26 | I32: 2001-08-01 | J32: الوادي26 | K32: محمد | L32: موظف | M32: حي الازدهار | N32: ثالثة ثانوي تسيير وإقتصاد
A33: 27 | B33: 046 | C33: 3تق | D33: لا | E33: خارجي | F33: أنثى | G33: بن علي27 | H33: أحمد27 | I33: 2001-10-28 | J33: الوادي27 | K33: عباس | L33: موظف | M33: حي الازدهار | N33: ثالثة ثانوي تسيير وإقتصاد
A34: 28 | B34: 050 | C34: 3تق | D34: لا | E34: خارجي | F34: أنثى | G34: بن علي28 | H34: أحمد28 | I34: 2002-02-09 | J34: الوادي28 | K34: تجاني | L34: موظف | M34: حي الازدهار | N34: ثالثة ثانوي تسيير وإقتصاد
A35: 29 | B35: 053 | C35: 3تق | D35: لا | E35: خارجي | F35: أنثى | G35: بن علي29 | H35: أحمد29 | I35: 2001-01-25 | J35: الوادي29 | K35: بكار | L35: موظف | M35: حي الازدهار | N35: ثالثة ثانوي تسيير وإقتصاد
A36: 30 | B36: 054 | C36: 3تق | D36: لا | E36: خارجي | F36: أنثى | G36: بن علي30 | H36: أحمد30 | I36: 2001-06-04 | J36: الوادي30 | K36: محمد العيد | L36: موظف | M36: حي الازدهار | N36: ثالثة ثانوي تسيير وإقتصاد
A37: 31 | B37: 055 | C37: 3تق | D37: لا | E37: خارجي | F37: أنثى | G37: بن علي31 | H37: أحمد31 | I37: 2001-08-01 | J37: الوادي31 | K37: البشير | L37: موظف | M37: حي الازدهار | N37: ثالثة ثانوي تسيير وإقتصاد
A38: 32 | B38: 056 | C38: 3تق | D38: لا | E38: خارجي | F38: أنثى | G38: بن علي32 | H38: أحمد32 | I38: 2000-02-17 | J38: الوادي32 | K38: سالم | L38: موظف | M38: حي الازدهار | N38: ثالثة ثانوي تسيير وإقتصاد
A39: 33 | B39: 058 | C39: 3تق | D39: لا | E39: خارجي | F39: أنثى | G39: بن علي33 | H39: أحمد33 | I39: 2001-01-08 | J39: الوادي33 | K39: محمد العروسي | L39: موظف | M39: حي الازدهار | N39: ثالثة ثانوي تسيير وإقتصاد
A40: 34 | B40: 059 | C40: 3تق | D40: لا | E40: خارجي | F40: أنثى | G40: بن علي34 | H40: أحمد34 | I40: 2002-08-03 | J40: الوادي34 | K40: محمد الجموعي | L40: موظف | M40: حي الازدهار | N40: ثالثة ثانوي تسيير وإقتصاد
A41: 35 | B41: 062 | C41: 3ريا | D41: نعم | E41: خارجي | F41: أنثى | G41: بن علي35 | H41: أحمد35 | I41: 2001-08-20 | J41: الوادي35 | K41: العروسي | L41: موظف | M41: حي الازدهار | N41: ثالثة ثانوي تقني رياضي
A42: 36 | B42: 064 | C42: 3ريا | D42: لا | E42: خارجي | F42: أنثى | G42: بن علي36 | H42: أحمد36 | I42: 2002-07-04 | J42: الوادي36 | K42: جمال | L42: موظف | M42: حي الازدهار | N42: ثالثة ثانوي تقني رياضي
A43: 37 | B43: 065 | C43: 3ريا | D43: لا | E43: خارجي | F43: أنثى | G43: بن علي37 | H43: أحمد37 | I43: 2002-05-23 | J43: الوادي37 | K43: بن سالم | L43: موظف | M43: حي الازدهار | N43: ثالثة ثانوي تقني رياضي
A44: 38 | B44: 066 | C44: 3ريا | D44: لا | E44: خارجي | F44: أنثى | G44: بن علي38 | H44: أحمد38 | I44: 2001-11-14 | J44: الوادي38 | K44: علي | L44: موظف | M44: حي الازدهار | N44: ثالثة ثانوي تقني رياضي
A45: 39 | B45: 068 | C45: 3ريا | D45: لا | E45: خارجي | F45: أنثى | G45: بن علي39 | H45: أحمد39 | I45: 2002-09-08 | J45: الوادي39 | K45: مسعود | L45: موظف | M45: حي الازدهار | N45: ثالثة ثانوي تقني رياضي
A46: 40 | B46: 069 | C46: 3ريا | D46: لا | E46: خارجي | F46: أنثى | G46: بن علي40 | H46: أحمد40 | I46: 2002-02-20 | J46: الوادي40 | K46: ابراهيم | L46: موظف | M46: حي الازدهار | N46: ثالثة ثانوي تقني رياضي
A47: 41 | B47: 070 | C47: 3ع1 | D47: نعم | E47: خارجي | F47: أنثى | G47: بن علي41 | H47: أحمد41 | I47: 2002-01-20 | J47: الوادي41 | K47: احمد | L47: موظف | M47: حي الازدهار | N47: ثالثة ثانويعلوم طبييعية 1
A48: 42 | B48: 071 | C48: 3ع1 | D48: لا | E48: خارجي | F48: أنثى | G48: بن علي42 | H48: أحمد42 | I48: 2002-04-16 | J48: الوادي42 | K48: محمد يحيى | L48: موظف | M48: حي الازدهار | N48: ثالثة ثانويعلوم طبييعية 1
A49: 43 | B49: 073 | C49: 3ع1 | D49: لا | E49: خارجي | F49: أنثى | G49: بن علي43 | H49: أحمد43 | I49: 2002-12-19 | J49: الوادي43 | K49: خليفة | L49: موظف | M49: حي الازدهار | N49: ثالثة ثانويعلوم طبييعية 1
A50: 44 | B50: 074 | C50: 3ع1 | D50: لا | E50: خارجي | F50: أنثى | G50: بن علي44 | H50: أحمد44 | I50: 2002-08-13 | J50: الوادي44 | K50: طليبة | L50: موظف | M50: حي الازدهار | N50: ثالثة ثانويعلوم طبييعية 1
A51: 45 | B51: 077 | C51: 3ع1 | D51: نعم | E51: خارجي | F51: أنثى | G51: بن علي45 | H51: أحمد45 | I51: 2002-02-20 | J51: الوادي45 | K51: العايش | L51: موظف | M51: حي الازدهار | N51: ثالثة ثانويعلوم طبييعية 1
A52: 46 | B52: 079 | C52: 3ع1 | D52: نعم | E52: خارجي | F52: أنثى | G52: بن علي46 | H52: أحمد46 | I52: 2001-12-26 | J52: الوادي46 | K52: عبد الكامل | L52: موظف | M52: حي الازدهار | N52: ثالثة ثانويعلوم طبييعية 1
A53: 47 | B53: 081 | C53: 3ع1 | D53: لا | E53: خارجي | F53: أنثى | G53: بن علي47 | H53: أحمد47 | I53: 2002-04-11 | J53: الوادي47 | K53: الناصر | L53: موظف | M53: حي الازدهار | N53: ثالثة ثانويعلوم طبييعية 1
A54: 48 | B54: 082 | C54: 3ع1 | D54: نعم | E54: خارجي | F54: أنثى | G54: بن علي48 | H54: أحمد48 | I54: 2001-05-28 | J54: الوادي48 | K54: نجيب | L54: موظف | M54: حي الازدهار | N54: ثالثة ثانويعلوم طبييعية 1
A55: 49 | B55: 084 | C55: 3ع1 | D55: لا | E55: خارجي | F55: أنثى | G55: بن علي49 | H55: أحمد49 | I55: 2001-08-29 | J55: الوادي49 | K55: محمد | L55: موظف | M55: حي الازدهار | N55: ثالثة ثانويعلوم طبييعية 1
A56: 50 | B56: 086 | C56: 3ع1 | D56: نعم | E56: خارجي | F56: أنثى | G56: بن علي50 | H56: أحمد50 | I56: 2001-01-16 | J56: الوادي50 | K56: عبد الكريم | L56: موظف | M56: حي الازدهار | N56: ثالثة ثانويعلوم طبييعية 1
A57: 51 | B57: 090 | C57: 3ع1 | D57: لا | E57: خارجي | F57: أنثى | G57: بن علي51 | H57: أحمد51 | I57: 2003-03-06 | J57: الوادي51 | K57: عمر | L57: موظف | M57: حي الازدهار | N57: ثالثة ثانويعلوم طبييعية 1
A58: 52 | B58: 091 | C58: 3ع1 | D58: لا | E58: خارجي | F58: أنثى | G58: بن علي52 | H58: أحمد52 | I58: 2001-12-20 | J58: الوادي52 | K58: الحبيب | L58: موظف | M58: حي الازدهار | N58: ثالثة ثانويعلوم طبييعية 1
A59: 53 | B59: 092 | C59: 3ع1 | D59: لا | E59: خارجي | F59: أنثى | G59: بن علي53 | H59: أحمد53 | I59: 2002-01-20 | J59: الوادي53 | K59: سليمان | L59: موظف | M59: حي الازدهار | N59: ثالثة ثانويعلوم طبييعية 1
A60: 54 | B60: 094 | C60: 3ع1 | D60: لا | E60: خارجي | F60: أنثى | G60: بن علي54 | H60: أحمد54 | I60: 2001-10-27 | J60: الوادي54 | K60: صالح | L60: موظف | M60: حي الازدهار | N60: ثالثة ثانويعلوم طبييعية 1
A61: 55 | B61: 095 | C61: 3ع1 | D61: لا | E61: خارجي | F61: أنثى | G61: بن علي55 | H61: أحمد55 | I61: 2002-03-07 | J61: الوادي55 | K61: عقبة | L61: موظف | M61: حي الازدهار | N61: ثالثة ثانويعلوم طبييعية 1
A62: 56 | B62: 097 | C62: 3ع1 | D62: نعم | E62: خارجي | F62: أنثى | G62: بن علي56 | H62: أحمد56 | I62: 2001-05-09 | J62: الوادي56 | K62: عبد اللطيف | L62: موظف | M62: حي الازدهار | N62: ثالثة ثانويعلوم طبييعية 1
A63: 57 | B63: 099 | C63: 3ع1 | D63: لا | E63: خارجي | F63: أنثى | G63: بن علي57 | H63: أحمد57 | I63: 2002-10-23 | J63: الوادي57 | K63: محمد | L63: موظف | M63: حي الازدهار | N63: ثالثة ثانويعلوم طبييعية 1
A64: 58 | B64: 100 | C64: 3ع1 | D64: لا | E64: خارجي | F64: أنثى | G64: بن علي58 | H64: أحمد58 | I64: 2002-05-27 | J64: الوادي58 | K64: عبد الحميد | L64: موظف | M64: حي الازدهار | N64: ثالثة ثانويعلوم طبييعية 1
A65: 59 | B65: 101 | C65: 3ع1 | D65: لا | E65: خارجي | F65: أنثى | G65: بن علي59 | H65: أحمد59 | I65: 2003-01-04 | J65: الوادي59 | K65: عبد الغني | L65: موظف | M65: حي الازدهار | N65: ثالثة ثانويعلوم طبييعية 1
A66: 60 | B66: 102 | C66: 3ع1 | D66: لا | E66: خارجي | F66: أنثى | G66: بن علي60 | H66: أحمد60 | I66: 2002-10-08 | J66: الوادي60 | K66: علي | L66: موظف | M66: حي الازدهار | N66: ثالثة ثانويعلوم طبييعية 1
A67: 61 | B67: 103 | C67: 3ع1 | D67: نعم | E67: خارجي | F67: أنثى | G67: بن علي61 | H67: أحمد61 | I67: 2001-08-30 | J67: الوادي61 | K67: عبد العزيز | L67: موظف | M67: حي الازدهار | N67: ثالثة ثانويعلوم طبييعية 1
A68: 62 | B68: 104 | C68: 3ع2 | D68: لا | E68: خارجي | F68: أنثى | G68: بن علي62 | H68: أحمد62 | I68: 2002-06-09 | J68: الوادي62 | K68: خليفة | L68: موظف | M68: حي الازدهار | N68: ثالثة ثانويعلوم طبييعية 2
A69: 63 | B69: 107 | C69: 3ع2 | D69: نعم | E69: خارجي | F69: أنثى | G69: بن علي63 | H69: أحمد63 | I69: 2001-05-24 | J69: الوادي63 | K69: احمد | L69: موظف | M69: حي الازدهار | N69: ثالثة ثانويعلوم طبييعية 2
A70: 64 | B70: 110 | C70: 3ع2 | D70: لا | E70: خارجي | F70: أنثى | G70: بن علي64 | H70: أحمد64 | I70: 2002-02-12 | J70: الوادي64 | K70: ميلود | L70: موظف | M70: حي الازدهار | N70: ثالثة ثانويعلوم طبييعية 2
A71: 65 | B71: 111 | C71: 3ع2 | D71: نعم | E71: خارجي | F71: أنثى | G71: بن علي65 | H71: أحمد65 | I71: 2001-06-27 | J71: الوادي65 | K71: سمير | L71: موظف | M71: حي الازدهار | N71: ثالثة ثانويعلوم طبييعية 2
A72: 66 | B72: 112 | C72: 3ع2 | D72: لا | E72: خارجي | F72: أنثى | G72: بن علي66 | H72: أحمد66 | I72: 2002-06-25 | J72: الوادي66 | K72: عمار | L72: موظف | M72: حي الازدهار | N72: ثالثة ثانويعلوم طبييعية 2
A73: 67 | B73: 115 | C73: 3ع2 | D73: نعم | E73: خارجي | F73: أنثى | G73: بن علي67 | H73: أحمد67 | I73: 2001-12-18 | J73: الوادي67 | K73: يوسف | L73: موظف | M73: حي الازدهار | N73: ثالثة ثانويعلوم طبييعية 2
A74: 68 | B74: 117 | C74: 3ع2 | D74: لا | E74: خارجي | F74: أنثى | G74: بن علي68 | H74: أحمد68 | I74: 2002-09-21 | J74: الوادي68 | K74: احمد | L74: موظف | M74: حي الازدهار | N74: ثالثة ثانويعلوم طبييعية 2
A75: 69 | B75: 118 | C75: 3ع2 | D75: لا | E75: خارجي | F75: أنثى | G75: بن علي69 | H75: أحمد69 | I75: 2002-05-30 | J75: الوادي69 | K75: محمد السعيد | L75: موظف | M75: حي الازدهار | N75: ثالثة ثانويعلوم طبييعية 2
A76: 70 | B76: 120 | C76: 3ع2 | D76: لا | E76: خارجي | F76: أنثى | G76: بن علي70 | H76: أحمد70 | I76: 2003-01-07 | J76: الوادي70 | K76: عبد الرحمان | L76: موظف | M76: حي الازدهار | N76: ثالثة ثانويعلوم طبييعية 2
A77: 71 | B77: 121 | C77: 3ع2 | D77: لا | E77: خارجي | F77: أنثى | G77: بن علي71 | H77: أحمد71 | I77: 2002-09-24 | J77: الوادي71 | K77: محمد | L77: موظف | M77: حي الازدهار | N77: ثالثة ثانويعلوم طبييعية 2
A78: 72 | B78: 123 | C78: 3ع2 | D78: نعم | E78: خارجي | F78: أنثى | G78: بن علي72 | H78: أحمد72 | I78: 2000-06-18 | J78: الوادي72 | K78: وليد | L78: موظف | M78: حي الازدهار | N78: ثالثة ثانويعلوم طبييعية 2
A79: 73 | B79: 125 | C79: 3ع2 | D79: لا | E79: خارجي | F79: أنثى | G79: بن علي73 | H79: أحمد73 | I79: 2002-02-25 | J79: الوادي73 | K79: عبد الغني | L79: موظف | M79: حي الازدهار | N79: ثالثة ثانويعلوم طبييعية 2
A80: 74 | B80: 126 | C80: 3ع2 | D80: لا | E80: خارجي | F80: أنثى | G80: بن علي74 | H80: أحمد74 | I80: 2002-03-25 | J80: الوادي74 | K80: محمد الامين | L80: موظف | M80: حي الازدهار | N80: ثالثة ثانويعلوم طبييعية 2
A81: 75 | B81: 128 | C81: 3ع2 | D81: لا | E81: خارجي | F81: أنثى | G81: بن علي75 | H81: أحمد75 | I81: 2001-11-11 | J81: الوادي75 | K81: محمد | L81: موظف | M81: حي الازدهار | N81: ثالثة ثانويعلوم طبييعية 2
A82: 76 | B82: 130 | C82: 3ع2 | D82: لا | E82: خارجي | F82: أنثى | G82: بن علي76 | H82: أحمد76 | I82: 2002-09-24 | J82: الوادي76 | K82: رابح | L82: موظف | M82: حي الازدهار | N82: ثالثة ثانويعلوم طبييعية 2
A83: 77 | B83: 131 | C83: 3ع2 | D83: لا | E83: خارجي | F83: أنثى | G83: بن علي77 | H83: أحمد77 | I83: 2002-11-09 | J83: الوادي77 | K83: مسعود | L83: موظف | M83: حي الازدهار | N83: ثالثة ثانويعلوم طبييعية 2
A84: 78 | B84: 135 | C84: 3ع2 | D84: نعم | E84: خارجي | F84: أنثى | G84: بن علي78 | H84: أحمد78 | I84: 2002-03-28 | J84: الوادي78 | K84: الحسيني | L84: موظف | M84: حي الازدهار | N84: ثالثة ثانويعلوم طبييعية 2
A85: 79 | B85: 136 | C85: 3آف | D85: لا | E85: خارجي | F85: أنثى | G85: بن علي79 | H85: أحمد79 | I85: 2001-09-25 | J85: الوادي79 | K85: حسين | L85: موظف | M85: حي الازدهار | N85: ثالثة ثانوي آداب وفلسفة
A86: 80 | B86: 137 | C86: 3آف | D86: نعم | E86: خارجي | F86: أنثى | G86: بن علي80 | H86: أحمد80 | I86: 2001-10-12 | J86: الوادي80 | K86: احمد | L86: موظف | M86: حي الازدهار | N86: ثالثة ثانوي آداب وفلسفة
A87: 81 | B87: 138 | C87: 3آف | D87: لا | E87: خارجي | F87: أنثى | G87: بن علي81 | H87: أحمد81 | I87: 2002-10-28 | J87: الوادي81 | K87: محمد | L87: موظف | M87: حي الازدهار | N87: ثالثة ثانوي آداب وفلسفة
A88: 82 | B88: 139 | C88: 3آف | D88: لا | E88: خارجي | F88: أنثى | G88: بن علي82 | H88: أحمد82 | I88: 2002-01-31 | J88: الوادي82 | K88: محمد الاسعد | L88: موظف | M88: حي الازدهار | N88: ثالثة ثانوي آداب وفلسفة
A89: 83 | B89: 140 | C89: 3آف | D89: لا | E89: خارجي | F89: أنثى | G89: بن علي83 | H89: أحمد83 | I89: 2001-04-26 | J89: الوادي83 | K89: ميلود | L89: موظف | M89: حي الازدهار | N89: ثالثة ثانوي آداب وفلسفة
A90: 84 | B90: 141 | C90: 3آف | D90: لا | E90: خارجي | F90: أنثى | G90: بن علي84 | H90: أحمد84 | I90: 2001-10-29 | J90: الوادي84 | K90: الصادق | L90: موظف | M90: حي الازدهار | N90: ثالثة ثانوي آداب وفلسفة
A91: 85 | B91: 142 | C91: 3آف | D91: لا | E91: خارجي | F91: أنثى | G91: بن علي85 | H91: أحمد85 | I91: 2002-09-20 | J91: الوادي85 | K91: فريد | L91: موظف | M91: حي الازدهار | N91: ثالثة ثانوي آداب وفلسفة
A92: 86 | B92: 143 | C92: 3آف | D92: لا | E92: خارجي | F92: أنثى | G92: بن علي86 | H92: أحمد86 | I92: 2002-09-30 | J92: الوادي86 | K92: علي | L92: موظف | M92: حي الازدهار | N92: ثالثة ثانوي آداب وفلسفة
A93: 87 | B93: 144 | C93: 3آف | D93: لا | E93: خارجي | F93: أنثى | G93: بن علي87 | H93: أحمد87 | I93: 2002-01-09 | J93: الوادي87 | K93: اسماعيل | L93: موظف | M93: حي الازدهار | N93: ثالثة ثانوي آداب وفلسفة
A94: 88 | B94: 146 | C94: 3آف | D94: لا | E94: خارجي | F94: أنثى | G94: بن علي88 | H94: أحمد88 | I94: 1999-09-13 | J94: الوادي88 | K94: زوبير | L94: موظف | M94: حي الازدهار | N94: ثالثة ثانوي آداب وفلسفة
A95: 89 | B95: 147 | C95: 3آف | D95: لا | E95: خارجي | F95: أنثى | G95: بن علي89 | H95: أحمد89 | I95: 2002-01-12 | J95: الوادي89 | K95: عبد الجليل | L95: موظف | M95: حي الازدهار | N95: ثالثة ثانوي آداب وفلسفة
A96: 90 | B96: 148 | C96: 3آف | D96: لا | E96: خارجي | F96: أنثى | G96: بن علي90 | H96: أحمد90 | I96: 2002-04-20 | J96: الوادي90 | K96: جمال | L96: موظف | M96: حي الازدهار | N96: ثالثة ثانوي آداب وفلسفة
A97: 91 | B97: 149 | C97: 3آف | D97: لا | E97: خارجي | F97: أنثى | G97: بن علي91 | H97: أحمد91 | I97: 2001-07-10 | J97: الوادي91 | K97: محمد | L97: موظف | M97: حي الازدهار | N97: ثالثة ثانوي آداب وفلسفة
A98: 92 | B98: 150 | C98: 3آف | D98: لا | E98: خارجي | F98: أنثى | G98: بن علي92 | H98: أحمد92 | I98: 2001-01-07 | J98: الوادي92 | K98: نور الدين | L98: موظف | M98: حي الازدهار | N98: ثالثة ثانوي آداب وفلسفة
A99: 93 | B99: 151 | C99: 3آف | D99: لا | E99: خارجي | F99: أنثى | G99: بن علي93 | H99: أحمد93 | I99: 2001-11-28 | J99: الوادي93 | K99: عز الدين | L99: موظف | M99: حي الازدهار | N99: ثالثة ثانوي آداب وفلسفة
A100: 94 | B100: 154 | C100: 3آف | D100: لا | E100: خارجي | F100: أنثى | G100: بن علي94 | H100: أحمد94 | I100: 2001-01-05 | J100: الوادي94 | K100: نصر | L100: موظف | M100: حي الازدهار | N100: ثالثة ثانوي آداب وفلسفة
A101: 95 | B101: 156 | C101: 3آف | D101: لا | E101: خارجي | F101: أنثى | G101: بن علي95 | H101: أحمد95 | I101: 2002-03-31 | J101: الوادي95 | K101: سعد | L101: موظف | M101: حي الازدهار | N101: ثالثة ثانوي آداب وفلسفة
A102: 96 | B102: 157 | C102: 3آف | D102: لا | E102: خارجي | F102: أنثى | G102: بن علي96 | H102: أحمد96 | I102: 2002-07-25 | J102: الوادي96 | K102: علي | L102: موظف | M102: حي الازدهار | N102: ثالثة ثانوي آداب وفلسفة
A103: 97 | B103: 158 | C103: 3آف | D103: نعم | E103: خارجي | F103: أنثى | G103: بن علي97 | H103: أحمد97 | I103: 2001-03-08 | J103: الوادي97 | K103: بشير | L103: موظف | M103: حي الازدهار | N103: ثالثة ثانوي آداب وفلسفة
A104: 98 | B104: 159 | C104: 3آف | D104: لا | E104: خارجي | F104: أنثى | G104: بن علي98 | H104: أحمد98 | I104: 2002-11-26 | J104: الوادي98 | K104: محمد | L104: موظف | M104: حي الازدهار | N104: ثالثة ثانوي آداب وفلسفة
A105: 99 | B105: 160 | C105: 3آف | D105: نعم | E105: خارجي | F105: أنثى | G105: بن علي99 | H105: أحمد99 | I105: 2001-01-22 | J105: الوادي99 | K105: مبروك | L105: موظف | M105: حي الازدهار | N105: ثالثة ثانوي آداب وفلسفة
A106: 100 | B106: 161 | C106: 3آف | D106: لا | E106: خارجي | F106: أنثى | G106: بن علي100 | H106: أحمد100 | I106: 2002-07-22 | J106: الوادي100 | K106: العيد | L106: موظف | M106: حي الازدهار | N106: ثالثة ثانوي آداب وفلسفة
A107: 101 | B107: 162 | C107: 3آف | D107: لا | E107: خارجي | F107: أنثى | G107: بن علي101 | H107: أحمد101 | I107: 2000-07-06 | J107: الوادي101 | K107: العيد | L107: موظف | M107: حي الازدهار | N107: ثالثة ثانوي آداب وفلسفة
A108: 102 | B108: 163 | C108: 3آف | D108: لا | E108: خارجي | F108: أنثى | G108: بن علي102 | H108: أحمد102 | I108: 2001-06-29 | J108: الوادي102 | K108: جول | L108: موظف | M108: حي الازدهار | N108: ثالثة ثانوي آداب وفلسفة
A109: 103 | B109: 164 | C109: 3آف | D109: لا | E109: خارجي | F109: أنثى | G109: بن علي103 | H109: أحمد103 | I109: 2001-12-31 | J109: الوادي103 | K109: احمد | L109: موظف | M109: حي الازدهار | N109: ثالثة ثانوي آداب وفلسفة
A110: 104 | B110: 165 | C110: 3آف | D110: لا | E110: خارجي | F110: أنثى | G110: بن علي104 | H110: أحمد104 | I110: 1999-08-13 | J110: الوادي104 | K110: صالح | L110: موظف | M110: حي الازدهار | N110: ثالثة ثانوي آداب وفلسفة
A111: 105 | B111: 166 | C111: 3آف | D111: لا | E111: خارجي | F111: أنثى | G111: بن علي105 | H111: أحمد105 | I111: 2003-02-25 | J111: الوادي105 | K111: علي | L111: موظف | M111: حي الازدهار | N111: ثالثة ثانوي آداب وفلسفة
A112: 106 | B112: 169 | C112: 3آف | D112: لا | E112: خارجي | F112: أنثى | G112: بن علي106 | H112: أحمد106 | I112: 2002-12-05 | J112: الوادي106 | K112: يوسف | L112: موظف | M112: حي الازدهار | N112: ثالثة ثانوي آداب وفلسفة
A113: 107 | B113: 170 | C113: 3آف | D113: لا | E113: خارجي | F113: أنثى | G113: بن علي107 | H113: أحمد107 | I113: 2000-04-24 | J113: الوادي107 | K113: احمد | L113: موظف | M113: حي الازدهار | N113: ثالثة ثانوي آداب وفلسفة
A114: 108 | B114: 171 | C114: 3آف | D114: نعم | E114: خارجي | F114: أنثى | G114: بن علي108 | H114: أحمد108 | I114: 2001-07-08 | J114: الوادي108 | K114: خليفة | L114: موظف | M114: حي الازدهار | N114: ثالثة ثانوي آداب وفلسفة
A115: 109 | B115: 173 | C115: 3آف | D115: لا | E115: خارجي | F115: أنثى | G115: بن علي109 | H115: أحمد109 | I115: 2002-08-19 | J115: الوادي109 | K115: عبد الله | L115: موظف | M115: حي الازدهار | N115: ثالثة ثانوي آداب وفلسفة
A116: 110 | B116: 176 | C116: 2هط | D116: لا | E116: خارجي | F116: أنثى | G116: بن علي110 | H116: أحمد110 | I116: 2003-07-12 | J116: الوادي110 | K116: نور الدين | L116: موظف | M116: حي الازدهار | N116: الثانية ثانوي هندسسة طرائق
A117: 111 | B117: 179 | C117: 2هط | D117: لا | E117: خارجي | F117: أنثى | G117: بن علي111 | H117: أحمد111 | I117: 2003-05-27 | J117: الوادي111 | K117: عبد الله | L117: موظف | M117: حي الازدهار | N117: الثانية ثانوي هندسسة طرائق
A118: 112 | B118: 180 | C118: 2هط | D118: لا | E118: خارجي | F118: أنثى | G118: بن علي112 | H118: أحمد112 | I118: 2003-07-02 | J118: الوادي112 | K118: الهادي | L118: موظف | M118: حي الازدهار | N118: الثانية ثانوي هندسسة طرائق
A119: 113 | B119: 181 | C119: 2هط | D119: لا | E119: خارجي | F119: أنثى | G119: بن علي113 | H119: أحمد113 | I119: 2003-03-13 | J119: الوادي113 | K119: نصر | L119: موظف | M119: حي الازدهار | N119: الثانية ثانوي هندسسة طرائق
A120: 114 | B120: 185 | C120: 2هط | D120: لا | E120: خارجي | F120: أنثى | G120: بن علي114 | H120: أحمد114 | I120: 2003-03-16 | J120: الوادي114 | K120: التجاني | L120: موظف | M120: حي الازدهار | N120: الثانية ثانوي هندسسة طرائق
A121: 115 | B121: 188 | C121: 2هط | D121: لا | E121: خارجي | F121: أنثى | G121: بن علي115 | H121: أحمد115 | I121: 2003-08-14 | J121: الوادي115 | K121: حسين | L121: موظف | M121: حي الازدهار | N121: الثانية ثانوي هندسسة طرائق
A122: 116 | B122: 190 | C122: 2هط | D122: لا | E122: خارجي | F122: أنثى | G122: بن علي116 | H122: أحمد116 | I122: 2003-07-29 | J122: الوادي116 | K122: خليفة | L122: موظف | M122: حي الازدهار | N122: الثانية ثانوي هندسسة طرائق
A123: 117 | B123: 191 | C123: 2هط | D123: لا | E123: خارجي | F123: أنثى | G123: بن علي117 | H123: أحمد117 | I123: 2003-10-11 | J123: الوادي117 | K123: جعفر | L123: موظف | M123: حي الازدهار | N123: الثانية ثانوي هندسسة طرائق
A124: 118 | B124: 194 | C124: 2هط | D124: لا | E124: خارجي | F124: أنثى | G124: بن علي118 | H124: أحمد118 | I124: 2003-08-23 | J124: الوادي118 | K124: التجاني | L124: موظف | M124: حي الازدهار | N124: الثانية ثانوي هندسسة طرائق
A125: 119 | B125: 197 | C125: 2هط | D125: لا | E125: خارجي | F125: أنثى | G125: بن علي119 | H125: أحمد119 | I125: 2003-01-01 | J125: الوادي119 | K125: فتحي | L125: موظف | M125: حي الازدهار | N125: الثانية ثانوي هندسسة طرائق
A126: 120 | B126: 198 | C126: 2هط | D126: لا | E126: خارجي | F126: أنثى | G126: بن علي120 | H126: أحمد120 | I126: 2004-01-11 | J126: الوادي120 | K126: محمد | L126: موظف | M126: حي الازدهار | N126: الثانية ثانوي هندسسة طرائق
A127: 121 | B127: 199 | C127: 2تق | D127: لا | E127: خارجي | F127: أنثى | G127: بن علي121 | H127: أحمد121 | I127: 2002-10-05 | J127: الوادي121 | K127: ادريس | L127: موظف | M127: حي الازدهار | N127: الثانية ثانوي تسيير وإقتصاد
A128: 122 | B128: 200 | C128: 2تق | D128: لا | E128: خارجي | F128: أنثى | G128: بن علي122 | H128: أحمد122 | I128: 2003-07-22 | J128: الوادي122 | K128: بلقاسم | L128: موظف | M128: حي الازدهار | N128: الثانية ثانوي تسيير وإقتصاد
A129: 123 | B129: 202 | C129: 2تق | D129: لا | E129: خارجي | F129: أنثى | G129: بن علي123 | H129: أحمد123 | I129: 2003-09-17 | J129: الوادي123 | K129: ابراهيم | L129: موظف | M129: حي الازدهار | N129: الثانية ثانوي تسيير وإقتصاد
A130: 124 | B130: 206 | C130: 2تق | D130: لا | E130: خارجي | F130: أنثى | G130: بن علي124 | H130: أحمد124 | I130: 2004-02-22 | J130: الوادي124 | K130: علي | L130: موظف | M130: حي الازدهار | N130: الثانية ثانوي تسيير وإقتصاد
A131: 125 | B131: 208 | C131: 2تق | D131: لا | E131: خارجي | F131: أنثى | G131: بن علي125 | H131: أحمد125 | I131: 2003-06-23 | J131: الوادي125 | K131: عمار | L131: موظف | M131: حي الازدهار | N131: الثانية ثانوي تسيير وإقتصاد
A132: 126 | B132: 210 | C132: 2تق | D132: لا | E132: خارجي | F132: أنثى | G132: بن علي126 | H132: أحمد126 | I132: 2002-07-17 | J132: الوادي126 | K132: الحبيب | L132: موظف | M132: حي الازدهار | N132: الثانية ثانوي تسيير وإقتصاد
A133: 127 | B133: 211 | C133: 2تق | D133: لا | E133: خارجي | F133: أنثى | G133: بن علي127 | H133: أحمد127 | I133: 2002-08-29 | J133: الوادي127 | K133: يوسف | L133: موظف | M133: حي الازدهار | N133: الثانية ثانوي تسيير وإقتصاد
A134: 128 | B134: 212 | C134: 2تق | D134: لا | E134: خارجي | F134: أنثى | G134: بن علي128 | H134: أحمد128 | I134: 2003-06-15 | J134: الوادي128 | K134: صحراوي | L134: موظف | M134: حي الازدهار | N134: الثانية ثانوي تسيير وإقتصاد
A135: 129 | B135: 213 | C135: 2تق | D135: لا | E135: خارجي | F135: أنثى | G135: بن علي129 | H135: أحمد129 | I135: 2004-01-24 | J135: الوادي129 | K135: مسعود | L135: موظف | M135: حي الازدهار | N135: الثانية ثانوي تسيير وإقتصاد
A136: 130 | B136: 214 | C136: 2تق | D136: لا | E136: خارجي | F136: أنثى | G136: بن علي130 | H136: أحمد130 | I136: 2003-05-04 | J136: الوادي130 | K136: حسن | L136: موظف | M136: حي الازدهار | N136: الثانية ثانوي تسيير وإقتصاد
A137: 131 | B137: 216 | C137: 2تق | D137: لا | E137: خارجي | F137: أنثى | G137: بن علي131 | H137: أحمد131 | I137: 2001-08-31 | J137: الوادي131 | K137: عبد الحميد | L137: موظف | M137: حي الازدهار | N137: الثانية ثانوي تسيير وإقتصاد
A138: 132 | B138: 217 | C138: 2تق | D138: لا | E138: خارجي | F138: أنثى | G138: بن علي132 | H138: أحمد132 | I138: 2003-02-25 | J138: الوادي132 | K138: البشير | L138: موظف | M138: حي الازدهار | N138: الثانية ثانوي تسيير وإقتصاد
A139: 133 | B139: 218 | C139: 2تق | D139: لا | E139: خارجي | F139: أنثى | G139: بن علي133 | H139: أحمد133 | I139: 2003-05-05 | J139: الوادي133 | K139: عزالدين | L139: موظف | M139: حي الازدهار | N139: الثانية ثانوي تسيير وإقتصاد
A140: 134 | B140: 219 | C140: 2تق | D140: لا | E140: خارجي | F140: أنثى | G140: بن علي134 | H140: أحمد134 | I140: 2003-03-18 | J140: الوادي134 | K140: فتيحة | L140: موظف | M140: حي الازدهار | N140: الثانية ثانوي تسيير وإقتصاد
A141: 135 | B141: 220 | C141: 2تق | D141: لا | E141: خارجي | F141: أنثى | G141: بن علي135 | H141: أحمد135 | I141: 2003-03-15 | J141: الوادي135 | K141: ابراهيم | L141: موظف | M141: حي الازدهار | N141: الثانية ثانوي تسيير وإقتصاد
A142: 136 | B142: 221 | C142: 2تق | D142: لا | E142: خارجي | F142: أنثى | G142: بن علي136 | H142: أحمد136 | I142: 2003-02-19 | J142: الوادي136 | K142: السعيد | L142: موظف | M142: حي الازدهار | N142: الثانية ثانوي تسيير وإقتصاد
A143: 137 | B143: 222 | C143: 2تق | D143: لا | E143: خارجي | F143: أنثى | G143: بن علي137 | H143: أحمد137 | I143: 2004-01-01 | J143: الوادي137 | K143: نعمان | L143: موظف | M143: حي الازدهار | N143: الثانية ثانوي تسيير وإقتصاد
A144: 138 | B144: 223 | C144: 2تق | D144: لا | E144: خارجي | F144: أنثى | G144: بن علي138 | H144: أحمد138 | I144: 2003-10-30 | J144: الوادي138 | K144: علي | L144: موظف | M144: حي الازدهار | N144: الثانية ثانوي تسيير وإقتصاد
A145: 139 | B145: 224 | C145: 2تق | D145: لا | E145: خارجي | F145: أنثى | G145: بن علي139 | H145: أحمد139 | I145: 2002-10-06 | J145: الوادي139 | K145: معراج | L145: موظف | M145: حي الازدهار | N145: الثانية ثانوي تسيير وإقتصاد
A146: 140 | B146: 227 | C146: 2تق | D146: لا | E146: خارجي | F146: أنثى | G146: بن علي140 | H146: أحمد140 | I146: 2001-06-08 | J146: الوادي140 | K146: طلحة | L146: موظف | M146: حي الازدهار | N146: الثانية ثانوي تسيير وإقتصاد
A147: 141 | B147: 230 | C147: 2تق | D147: لا | E147: خارجي | F147: أنثى | G147: بن علي141 | H147: أحمد141 | I147: 2003-09-04 | J147: الوادي141 | K147: عبد الحميد | L147: موظف | M147: حي الازدهار | N147: الثانية ثانوي تسيير وإقتصاد
A148: 142 | B148: 232 | C148: 2ريا | D148: لا | E148: خارجي | F148: أنثى | G148: بن علي142 | H148: أحمد142 | I148: 2002-01-25 | J148: الوادي142 | K148: خليفة | L148: موظف | M148: حي الازدهار | N148: الثانية ثانوي تقني رياضي
A149: 143 | B149: 235 | C149: 2ريا | D149: لا | E149: خارجي | F149: أنثى | G149: بن علي143 | H149: أحمد143 | I149: 2003-07-27 | J149: الوادي143 | K149: جمال الدين | L149: موظف | M149: حي الازدهار | N149: الثانية ثانوي تقني رياضي
A150: 144 | B150: 236 | C150: 2ريا | D150: لا | E150: خارجي | F150: أنثى | G150: بن علي144 | H150: أحمد144 | I150: 2003-11-12 | J150: الوادي144 | K150: قيس | L150: موظف | M150: حي الازدهار | N150: الثانية ثانوي تقني رياضي
A151: 145 | B151: 238 | C151: 2ريا | D151: لا | E151: خارجي | F151: أنثى | G151: بن علي145 | H151: أحمد145 | I151: 2003-01-04 | J151: الوادي145 | K151: محمد علي | L151: موظف | M151: حي الازدهار | N151: الثانية ثانوي تقني رياضي
A152: 146 | B152: 242 | C152: 2ع1 | D152: لا | E152: خارجي | F152: أنثى | G152: بن علي146 | H152: أحمد146 | I152: 2002-11-28 | J152: الوادي146 | K152: الطيب | L152: موظف | M152: حي الازدهار | N152: 2ع1
A153: 147 | B153: 244 | C153: 2ع1 | D153: لا | E153: خارجي | F153: أنثى | G153: بن علي147 | H153: أحمد147 | I153: 2003-10-25 | J153: الوادي147 | K153: السعيد | L153: موظف | M153: حي الازدهار | N153: 2ع1
A154: 148 | B154: 245 | C154: 2ع1 | D154: لا | E154: خارجي | F154: أنثى | G154: بن علي148 | H154: أحمد148 | I154: 2002-08-24 | J154: الوادي148 | K154: أيوب | L154: موظف | M154: حي الازدهار | N154: 2ع1
A155: 149 | B155: 246 | C155: 2ع1 | D155: لا | E155: خارجي | F155: أنثى | G155: بن علي149 | H155: أحمد149 | I155: 2003-02-28 | J155: الوادي149 | K155: احمد | L155: موظف | M155: حي الازدهار | N155: 2ع1
A156: 150 | B156: 250 | C156: 2ع1 | D156: لا | E156: خارجي | F156: أنثى | G156: بن علي150 | H156: أحمد150 | I156: 2003-04-09 | J156: الوادي150 | K156: فيصل | L156: موظف | M156: حي الازدهار | N156: 2ع1
A157: 151 | B157: 251 | C157: 2ع1 | D157: لا | E157: خارجي | F157: أنثى | G157: بن علي151 | H157: أحمد151 | I157: 2002-02-28 | J157: الوادي151 | K157: عبد الباسط | L157: موظف | M157: حي الازدهار | N157: 2ع1
A158: 152 | B158: 252 | C158: 2ع1 | D158: لا | E158: خارجي | F158: أنثى | G158: بن علي152 | H158: أحمد152 | I158: 2003-03-09 | J158: الوادي152 | K158: سليم | L158: موظف | M158: حي الازدهار | N158: 2ع1
A159: 153 | B159: 253 | C159: 2ع1 | D159: لا | E159: خارجي | F159: أنثى | G159: بن علي153 | H159: أحمد153 | I159: 2003-05-15 | J159: الوادي153 | K159: سليم | L159: موظف | M159: حي الازدهار | N159: 2ع1
A160: 154 | B160: 254 | C160: 2ع1 | D160: نعم | E160: خارجي | F160: أنثى | G160: بن علي154 | H160: أحمد154 | I160: 2002-01-20 | J160: الوادي154 | K160: علي | L160: موظف | M160: حي الازدهار | N160: 2ع1
A161: 155 | B161: 258 | C161: 2ع1 | D161: لا | E161: خارجي | F161: أنثى | G161: بن علي155 | H161: أحمد155 | I161: 2002-10-08 | J161: الوادي155 | K161: عز الدين | L161: موظف | M161: حي الازدهار | N161: 2ع1
A162: 156 | B162: 263 | C162: 2ع1 | D162: لا | E162: خارجي | F162: أنثى | G162: بن علي156 | H162: أحمد156 | I162: 2003-04-01 | J162: الوادي156 | K162: الاخضر | L162: موظف | M162: حي الازدهار | N162: 2ع1
A163: 157 | B163: 264 | C163: 2ع1 | D163: لا | E163: خارجي | F163: أنثى | G163: بن علي157 | H163: أحمد157 | I163: 2003-11-16 | J163: الوادي157 | K163: محمد الاخضر | L163: موظف | M163: حي الازدهار | N163: 2ع1
A164: 158 | B164: 266 | C164: 2ع1 | D164: لا | E164: خارجي | F164: أنثى | G164: بن علي158 | H164: أحمد158 | I164: 2003-08-21 | J164: الوادي158 | K164: عبد الخالق | L164: موظف | M164: حي الازدهار | N164: 2ع1
A165: 159 | B165: 268 | C165: 2ع1 | D165: لا | E165: خارجي | F165: أنثى | G165: بن علي159 | H165: أحمد159 | I165: 2002-08-22 | J165: الوادي159 | K165: عبد الوهاب | L165: موظف | M165: حي الازدهار | N165: 2ع1
A166: 160 | B166: 269 | C166: 2ع1 | D166: لا | E166: خارجي | F166: أنثى | G166: بن علي160 | H166: أحمد160 | I166: 2003-10-09 | J166: الوادي160 | K166: علي | L166: موظف | M166: حي الازدهار | N166: 2ع1
A167: 161 | B167: 271 | C167: 2ع1 | D167: لا | E167: خارجي | F167: أنثى | G167: بن علي161 | H167: أحمد161 | I167: 2002-02-06 | J167: الوادي161 | K167: حسن | L167: موظف | M167: حي الازدهار | N167: 2ع1
A168: 162 | B168: 273 | C168: 2ع1 | D168: لا | E168: خارجي | F168: أنثى | G168: بن علي162 | H168: أحمد162 | I168: 2003-09-11 | J168: الوادي162 | K168: عبد الحكيم | L168: موظف | M168: حي الازدهار | N168: 2ع1
A169: 163 | B169: 274 | C169: 2ع1 | D169: لا | E169: خارجي | F169: أنثى | G169: بن علي163 | H169: أحمد163 | I169: 2002-03-28 | J169: الوادي163 | K169: عبد الحكيم | L169: موظف | M169: حي الازدهار | N169: 2ع1
A170: 164 | B170: 275 | C170: 2ع2 | D170: لا | E170: خارجي | F170: أنثى | G170: بن علي164 | H170: أحمد164 | I170: 2003-10-08 | J170: الوادي164 | K170: العيد | L170: موظف | M170: حي الازدهار | N170: 2ع2
A171: 165 | B171: 277 | C171: 2ع2 | D171: لا | E171: خارجي | F171: أنثى | G171: بن علي165 | H171: أحمد165 | I171: 2003-10-09 | J171: الوادي165 | K171: عمارة | L171: موظف | M171: حي الازدهار | N171: 2ع2
A172: 166 | B172: 278 | C172: 2ع2 | D172: لا | E172: خارجي | F172: أنثى | G172: بن علي166 | H172: أحمد166 | I172: 2003-10-27 | J172: الوادي166 | K172: السعيد | L172: موظف | M172: حي الازدهار | N172: 2ع2
A173: 167 | B173: 280 | C173: 2ع2 | D173: لا | E173: خارجي | F173: أنثى | G173: بن علي167 | H173: أحمد167 | I173: 2003-08-28 | J173: الوادي167 | K173: علي | L173: موظف | M173: حي الازدهار | N173: 2ع2
A174: 168 | B174: 281 | C174: 2ع2 | D174: نعم | E174: خارجي | F174: أنثى | G174: بن علي168 | H174: أحمد168 | I174: 2002-01-15 | J174: الوادي168 | K174: زوبير | L174: موظف | M174: حي الازدهار | N174: 2ع2
A175: 169 | B175: 283 | C175: 2ع2 | D175: لا | E175: خارجي | F175: أنثى | G175: بن علي169 | H175: أحمد169 | I175: 2003-11-10 | J175: الوادي169 | K175: منجي | L175: موظف | M175: حي الازدهار | N175: 2ع2
A176: 170 | B176: 284 | C176: 2ع2 | D176: لا | E176: خارجي | F176: أنثى | G176: بن علي170 | H176: أحمد170 | I176: 2003-07-29 | J176: الوادي170 | K176: عمارة | L176: موظف | M176: حي الازدهار | N176: 2ع2
A177: 171 | B177: 287 | C177: 2ع2 | D177: لا | E177: خارجي | F177: أنثى | G177: بن علي171 | H177: أحمد171 | I177: 2002-01-09 | J177: الوادي171 | K177: احمد | L177: موظف | M177: حي الازدهار | N177: 2ع2
A178: 172 | B178: 290 | C178: 2ع2 | D178: لا | E178: خارجي | F178: أنثى | G178: بن علي172 | H178: أحمد172 | I178: 2002-01-04 | J178: الوادي172 | K178: خليفة | L178: موظف | M178: حي الازدهار | N178: 2ع2
A179: 173 | B179: 291 | C179: 2ع2 | D179: لا | E179: خارجي | F179: أنثى | G179: بن علي173 | H179: أحمد173 | I179: 2003-03-31 | J179: الوادي173 | K179: احمد | L179: موظف | M179: حي الازدهار | N179: 2ع2
A180: 174 | B180: 293 | C180: 2ع2 | D180: لا | E180: خارجي | F180: أنثى | G180: بن علي174 | H180: أحمد174 | I180: 2003-11-01 | J180: الوادي174 | K180: سعد | L180: موظف | M180: حي الازدهار | N180: 2ع2
A181: 175 | B181: 294 | C181: 2ع2 | D181: لا | E181: خارجي | F181: أنثى | G181: بن علي175 | H181: أحمد175 | I181: 2003-04-26 | J181: الوادي175 | K181: اسماعيل | L181: موظف | M181: حي الازدهار | N181: 2ع2
A182: 176 | B182: 296 | C182: 2ع2 | D182: لا | E182: خارجي | F182: أنثى | G182: بن علي176 | H182: أحمد176 | I182: 2003-02-16 | J182: الوادي176 | K182: احمد | L182: موظف | M182: حي الازدهار | N182: 2ع2
A183: 177 | B183: 297 | C183: 2ع2 | D183: لا | E183: خارجي | F183: أنثى | G183: بن علي177 | H183: أحمد177 | I183: 2002-08-10 | J183: الوادي177 | K183: سايح | L183: موظف | M183: حي الازدهار | N183: 2ع2
A184: 178 | B184: 298 | C184: 2ع2 | D184: لا | E184: خارجي | F184: أنثى | G184: بن علي178 | H184: أحمد178 | I184: 2002-05-26 | J184: الوادي178 | K184: عبد الحميد | L184: موظف | M184: حي الازدهار | N184: 2ع2
A185: 179 | B185: 299 | C185: 2ع2 | D185: لا | E185: خارجي | F185: أنثى | G185: بن علي179 | H185: أحمد179 | I185: 2004-01-25 | J185: الوادي179 | K185: سفيان | L185: موظف | M185: حي الازدهار | N185: 2ع2
A186: 180 | B186: 300 | C186: 2ع2 | D186: لا | E186: خارجي | F186: أنثى | G186: بن علي180 | H186: أحمد180 | I186: 2003-07-02 | J186: الوادي180 | K186: جمال | L186: موظف | M186: حي الازدهار | N186: 2ع2
A187: 181 | B187: 301 | C187: 2ع2 | D187: لا | E187: خارجي | F187: أنثى | G187: بن علي181 | H187: أحمد181 | I187: 2001-08-18 | J187: الوادي181 | K187: نورة | L187: موظف | M187: حي الازدهار | N187: 2ع2
A188: 182 | B188: 302 | C188: 2ع2 | D188: لا | E188: خارجي | F188: أنثى | G188: بن علي182 | H188: أحمد182 | I188: 2003-08-23 | J188: الوادي182 | K188: عبد اللطيف | L188: موظف | M188: حي الازدهار | N188: 2ع2
A189: 183 | B189: 304 | C189: 2ع2 | D189: لا | E189: خارجي | F189: أنثى | G189: بن علي183 | H189: أحمد183 | I189: 2003-02-24 | J189: الوادي183 | K189: لخضر | L189: موظف | M189: حي الازدهار | N189: 2ع2
A190: 184 | B190: 305 | C190: 2ع2 | D190: لا | E190: خارجي | F190: أنثى | G190: بن علي184 | H190: أحمد184 | I190: 2003-03-16 | J190: الوادي184 | K190: عبد الوهاب | L190: موظف | M190: حي الازدهار | N190: 2ع2
A191: 185 | B191: 308 | C191: 2ع2 | D191: لا | E191: خارجي | F191: أنثى | G191: بن علي185 | H191: أحمد185 | I191: 2004-02-26 | J191: الوادي185 | K191: خليفة | L191: موظف | M191: حي الازدهار | N191: 2ع2
A192: 186 | B192: 309 | C192: 2ع2 | D192: لا | E192: خارجي | F192: أنثى | G192: بن علي186 | H192: أحمد186 | I192: 2003-07-05 | J192: الوادي186 | K192: عز الدين | L192: موظف | M192: حي الازدهار | N192: 2ع2
A193: 187 | B193: 310 | C193: 2آف | D193: لا | E193: خارجي | F193: أنثى | G193: بن علي187 | H193: أحمد187 | I193: 2003-11-18 | J193: الوادي187 | K193: محمد يحي | L193: موظف | M193: حي الازدهار | N193: 2آف
A194: 188 | B194: 311 | C194: 2آف | D194: لا | E194: خارجي | F194: أنثى | G194: بن علي188 | H194: أحمد188 | I194: 2002-08-15 | J194: الوادي188 | K194: الطيب | L194: موظف | M194: حي الازدهار | N194: 2آف
A195: 189 | B195: 312 | C195: 2آف | D195: لا | E195: خارجي | F195: أنثى | G195: بن علي189 | H195: أحمد189 | I195: 2003-01-21 | J195: الوادي189 | K195: خليفة | L195: موظف | M195: حي الازدهار | N195: 2آف
A196: 190 | B196: 315 | C196: 2آف | D196: لا | E196: خارجي | F196: أنثى | G196: بن علي190 | H196: أحمد190 | I196: 2002-02-16 | J196: الوادي190 | K196: الطاهر | L196: موظف | M196: حي الازدهار | N196: 2آف
A197: 191 | B197: 316 | C197: 2آف | D197: لا | E197: خارجي | F197: أنثى | G197: بن علي191 | H197: أحمد191 | I197: 2003-10-14 | J197: الوادي191 | K197: ع الرحمان | L197: موظف | M197: حي الازدهار | N197: 2آف
A198: 192 | B198: 317 | C198: 2آف | D198: لا | E198: خارجي | F198: أنثى | G198: بن علي192 | H198: أحمد192 | I198: 2004-01-01 | J198: الوادي192 | K198: فتحي | L198: موظف | M198: حي الازدهار | N198: 2آف
A199: 193 | B199: 318 | C199: 2آف | D199: لا | E199: خارجي | F199: أنثى | G199: بن علي193 | H199: أحمد193 | I199: 2001-11-06 | J199: الوادي193 | K199: عمار | L199: موظف | M199: حي الازدهار | N199: 2آف
A200: 194 | B200: 320 | C200: 2آف | D200: لا | E200: خارجي | F200: أنثى | G200: بن علي194 | H200: أحمد194 | I200: 2002-09-14 | J200: الوادي194 | K200: عبد القادر | L200: موظف | M200: حي الازدهار | N200: 2آف
... 377 more rows
